bitfinex/quotes_SOLUSD_20230111
["timestamp","ask_amount","ask_price","bid_price","bid_amount"]
[1673440888229,47.33,15.85,15.835,18.92]
[1673440888438,47.33,15.85,15.836,20.0]
[1673440888648,47.33,15.85,15.837,18.92]
[1673440890654,20.0,15.851,15.838,20.0]
[1673440890855,20.0,15.853,15.839,18.92]
[1673440891284,47.33,15.852,15.839,18.92]
[1673440891500,20.0,15.851,15.839,18.92]
[1673440892112,20.0,15.853,15.839,18.92]
[1673440893493,47.33,15.852,15.839,18.92]
[1673440893690,20.0,15.851,15.839,18.92]
[1673440894106,20.0,15.852,15.839,18.92]
[1673440894310,67.33,15.852,15.839,18.92]
[1673440894538,20.0,15.851,15.839,18.92]
[1673440895697,67.33,15.852,15.839,18.92]
[1673440896856,20.0,15.852,15.84,20.0]
[1673440897058,116.1069,15.856,15.841,18.92]
[1673440897059,47.33,15.851,15.841,18.92]
[1673440897263,47.33,15.851,15.839,18.92]
[1673440897474,20.0,15.851,15.836,20.0]
[1673440897795,47.33,15.85,15.836,20.0]
[1673440898002,47.33,15.85,15.835,47.38]
[1673440898335,47.33,15.85,15.829,109.0575]
[1673440898336,38.92,15.849,15.829,109.0575]
[1673440898535,134.3975,15.849,15.829,109.0575]
[1673440898755,67.34,15.848,15.829,109.0575]
[1673440899064,20.0,15.847,15.83,20.0]
[1673440899390,20.0,15.847,15.831,18.92]
[1673440899583,47.34,15.846,15.831,17.0]
[1673440900209,47.34,15.847,15.831,17.0]
[1673440900408,20.0,15.844,15.831,17.0]
[1673440900830,20.0,15.844,15.832,1.92]
[1673440901058,20.0,15.844,15.83,67.39]
[1673440901276,20.0,15.844,15.829,109.0575]
[1673440901277,27.3,15.84,15.829,109.0575]
[1673440901899,47.37,15.839,15.829,109.0575]
[1673440902418,47.37,15.839,15.83,20.0]
[1673440902635,47.36,15.842,15.829,109.0575]
[1673440902840,20.0,15.841,15.83,18.92]
[1673440903055,20.0,15.841,15.826,20.0]
[1673440903261,20.0,15.841,15.826,115.7819]
[1673440903262,48.32,15.84,15.826,115.7819]
[1673440903580,20.0,15.839,15.826,115.7819]
[1673440903790,48.32,15.84,15.826,115.7819]
[1673440904000,47.36,15.84,15.826,115.7819]
[1673440904216,47.36,15.84,15.827,20.0]
[1673440904620,47.36,15.84,15.828,18.92]
[1673440905039,20.0,15.839,15.828,0.96]
[1673440905586,20.0,15.839,15.809,100.85668621]
[1673440905778,20.0,15.839,15.8,264.25901709]
[1673440905779,27.3,15.83,15.816,47.43]
[1673440905988,27.3,15.83,15.811,159.9539]
[1673440906200,47.4,15.829,15.811,159.9539]
[1673440906408,47.4,15.829,15.812,20.0]
[1673440907346,47.4,15.829,15.813,47.44]
[1673440907347,20.0,15.828,15.813,47.44]
[1673440907675,20.0,15.828,15.801,67.48]
[1673440907676,27.3,15.82,15.801,67.48]
[1673440907877,20.0,15.819,15.802,114.8035]
[1673440908085,67.43,15.819,15.802,114.8035]
[1673440908303,67.43,15.819,15.803,47.47]
[1673440909662,67.43,15.819,15.802,114.8035]
[1673440909881,67.43,15.819,15.803,20.0]
[1673440910079,67.43,15.819,15.802,114.8035]
[1673440910611,0.96,15.818,15.802,114.8035]
[1673440911151,20.0,15.816,15.802,114.8035]
[1673440911990,67.43,15.816,15.802,114.8035]
[1673440912204,20.0,15.816,15.802,114.8035]
[1673440912629,67.43,15.816,15.802,114.8035]
[1673440913778,67.43,15.816,15.803,18.92]
[1673440913986,67.43,15.816,15.802,114.8035]
[1673440914604,47.43,15.816,15.803,20.0]
[1673440915146,47.43,15.816,15.802,114.8035]
[1673440915547,47.43,15.818,15.802,114.8035]
[1673440915759,47.44,15.815,15.802,114.8035]
[1673440915976,47.43,15.817,15.802,114.8035]
[1673440916190,47.43,15.818,15.802,114.8035]
[1673440916402,20.0,15.817,15.802,114.8035]
[1673440916610,20.0,15.817,15.803,0.96]
[1673440916804,47.43,15.816,15.804,0.96]
[1673440917017,47.43,15.816,15.805,0.96]
[1673440917449,47.43,15.816,15.803,17.0]
[1673440917653,20.0,15.815,15.799,47.49]
[1673440917855,20.0,15.815,15.8,20.0]
[1673440918068,20.0,15.815,15.8,40.0]
[1673440918277,47.43,15.816,15.801,20.0]
[1673440918493,47.43,15.816,15.801,67.48]
[1673440918702,47.43,15.816,15.801,20.0]
[1673440918914,47.43,15.816,15.802,17.96]
[1673440919137,47.43,15.816,15.8,67.48]
[1673440919349,20.0,15.815,15.8,20.0]
[1673440919562,20.96,15.815,15.8,20.0]
[1673440919763,47.44,15.814,15.8,20.0]
[1673440919971,47.44,15.814,15.8,40.0]
[1673440920180,20.0,15.813,15.8,20.0]
[1673440920503,47.44,15.814,15.801,20.0]
[1673440920693,47.43,15.816,15.801,67.48]
[1673440920903,47.43,15.818,15.801,67.48]
[1673440921134,47.43,15.819,15.801,67.48]
[1673440921341,47.43,15.819,15.802,1.92]
[1673440921657,47.43,15.819,15.803,20.0]
[1673440921853,47.43,15.819,15.804,18.92]
[1673440922689,47.43,15.819,15.805,20.0]
[1673440922924,47.43,15.819,15.806,18.92]
[1673440925760,27.31,15.82,15.802,47.48]
[1673440925980,47.43,15.818,15.801,47.48]
[1673440926292,20.0,15.817,15.799,112.7889]
[1673440926497,27.17,15.81,15.799,112.7889]
[1673440927011,47.46,15.809,15.799,112.7889]
[1673440927224,27.17,15.81,15.799,112.7889]
[1673440927434,47.46,15.809,15.799,112.7889]
[1673440927753,47.46,15.809,15.794,47.5]
[1673440927958,47.46,15.809,15.795,20.0]
[1673440928813,47.46,15.809,15.794,160.3414]
[1673440929025,20.0,15.808,15.794,112.8414]
[1673440929542,47.46,15.807,15.795,20.0]
[1673440929949,27.17,15.81,15.795,20.0]
[1673440929950,47.46,15.809,15.795,20.0]
[1673440930912,47.46,15.809,15.796,1.92]
[1673440931132,47.46,15.809,15.796,18.92]
[1673440931851,47.46,15.809,15.794,112.8414]
[1673440932066,20.0,15.808,15.794,112.8414]
[1673440932473,47.46,15.807,15.794,112.8414]
[1673440933001,47.46,15.807,15.795,20.0]
[1673440933213,47.46,15.809,15.796,18.92]
[1673440934272,47.46,15.809,15.796,1.92]
[1673440935220,27.17,15.81,15.796,1.92]
[1673440938987,27.17,15.81,15.798,20.0]
[1673440939197,27.17,15.81,15.799,18.92]
[1673440940348,47.44,15.814,15.8,20.0]
[1673440940568,114.9559,15.824,15.801,38.92]
[1673440940569,47.43,15.818,15.801,38.92]
[1673440940788,47.43,15.819,15.802,20.0]
[1673440941085,20.0,15.819,15.802,67.48]
[1673440941297,20.0,15.817,15.802,67.48]
[1673440942155,20.0,15.817,15.802,47.48]
[1673440942474,47.43,15.818,15.802,47.48]
[1673440942665,47.43,15.818,15.803,20.0]
[1673440942883,47.43,15.819,15.804,18.92]
[1673440943095,47.43,15.819,15.805,20.0]
[1673440943291,47.43,15.819,15.806,18.92]
[1673440943715,74.59,15.82,15.806,18.92]
[1673440943944,27.17,15.82,15.806,18.92]
[1673440944357,27.17,15.82,15.806,66.38]
[1673440944563,47.42,15.821,15.806,66.38]
[1673440944779,47.42,15.822,15.807,14.50003772]
[1673440945098,20.0,15.822,15.809,20.0]
[1673440945312,20.0,15.821,15.81,1.92]
[1673440945522,20.0,15.82,15.81,18.92]
[1673440945716,20.0,15.82,15.81,17.0]
[1673440946357,47.43,15.819,15.81,17.0]
[1673440946891,20.0,15.818,15.81,17.0]
[1673440947496,67.42,15.82,15.81,17.0]
[1673440947944,47.42,15.82,15.81,17.0]
[1673440951823,20.0,15.819,15.81,17.0]
[1673440952248,47.42,15.82,15.81,17.0]
[1673440952657,20.0,15.819,15.81,17.0]
[1673440952996,47.42,15.82,15.81,17.0]
[1673440953515,47.42,15.82,15.811,1.92]
[1673440953930,20.0,15.821,15.811,1.92]
[1673440954148,20.0,15.821,15.806,47.46]
[1673440954357,67.42,15.82,15.805,20.0]
[1673440954550,47.42,15.82,15.805,20.0]
[1673440954762,20.0,15.821,15.805,34.50003772]
[1673440954973,20.0,15.821,15.806,61.96003772]
[1673440955200,20.0,15.821,15.807,20.0]
[1673440955397,20.0,15.821,15.808,18.92]
[1673440955610,47.42,15.82,15.808,18.92]
[1673440955820,47.42,15.82,15.809,17.0]
[1673440956025,20.0,15.82,15.81,1.92]
[1673440956234,20.0,15.818,15.802,47.48]
[1673440956440,20.0,15.818,15.801,99.0752]
[1673440956759,20.0,15.816,15.802,20.0]
[1673440956981,47.43,15.817,15.802,20.0]
[1673440958447,47.43,15.817,15.802,34.50003772]
[1673440958654,47.43,15.819,15.803,66.39]
[1673440958873,20.0,15.818,15.804,20.0]
[1673440959091,20.0,15.818,15.805,18.92]
[1673440959282,47.43,15.819,15.806,20.0]
[1673440959499,47.43,15.819,15.807,18.92]
[1673440961300,18.19,15.82,15.807,18.92]
[1673440961506,47.43,15.819,15.807,18.92]
[1673440962032,20.0,15.818,15.807,18.92]
[1673440962219,47.43,15.819,15.807,18.92]
[1673440962431,47.43,15.819,15.807,17.96]
[1673440962660,47.43,15.819,15.801,99.0752]
[1673440962852,20.0,15.818,15.801,99.0752]
[1673440963289,47.43,15.817,15.801,99.0752]
[1673440963605,20.0,15.816,15.801,99.0752]
[1673440964011,47.44,15.815,15.801,99.0752]
[1673440964348,20.0,15.814,15.801,99.0752]
[1673440965175,149.85,15.81,15.801,146.5552]
[1673440965389,149.85,15.81,15.802,18.92]
[1673440968758,149.85,15.81,15.802,66.4]
[1673440969171,149.85,15.81,15.802,18.92]
[1673440970747,149.85,15.81,15.803,20.0]
[1673440970958,149.85,15.81,15.804,18.92]
[1673440971899,149.85,15.81,15.805,17.0]
[1673440972229,149.85,15.81,15.806,1.92]
[1673440972444,149.85,15.81,15.807,0.96]
[1673440972650,149.85,15.81,15.804,0.96]
[1673440972849,149.85,15.81,15.803,17.0]
[1673440973173,149.85,15.81,15.801,99.0752]
[1673440974018,149.85,15.81,15.803,20.0]
[1673440974330,149.85,15.81,15.802,47.48]
[1673440974542,149.85,15.81,15.801,146.5552]
[1673440974734,149.85,15.81,15.802,18.92]
[1673440975693,149.85,15.81,15.802,38.92]
[1673440975888,149.85,15.81,15.801,99.0752]
[1673440976725,149.85,15.81,15.798,47.49]
[1673440976936,20.0,15.808,15.793,113.7243]
[1673440977380,20.0,15.806,15.794,20.0]
[1673440978112,20.0,15.806,15.793,113.7243]
[1673440980215,47.46,15.807,15.794,0.96]
[1673440980431,47.46,15.807,15.795,0.96]
[1673440980733,20.0,15.806,15.796,0.96]
[1673440980925,20.0,15.806,15.797,0.96]
[1673440981140,20.0,15.806,15.798,0.96]
[1673440982624,20.0,15.806,15.797,0.96]
[1673440985149,20.0,15.806,15.794,17.0]
[1673440985472,20.0,15.806,15.795,1.92]
[1673440985999,149.85,15.8,15.795,1.92]
[1673440987676,32.7796875,15.8,15.795,1.92]
[1673440991773,32.7796875,15.8,15.793,113.7243]
[1673440992297,32.7796875,15.8,15.79,47.51]
[1673440992488,32.7796875,15.8,15.792,20.0]
[1673440993140,32.7796875,15.8,15.793,18.92]
[1673440993456,32.7796875,15.8,15.794,17.0]
[1673440993673,32.7796875,15.8,15.795,1.92]
[1673440993861,32.7796875,15.8,15.793,1.92]
[1673440997333,32.7796875,15.8,15.789,5.6830336]
[1673440997334,20.0,15.799,15.789,5.6830336]
[1673440997552,67.49,15.799,15.789,5.6830336]
[1673440998279,20.0,15.799,15.789,5.6830336]
[1673440998489,67.49,15.799,15.789,5.6830336]
[1673440998909,47.49,15.799,15.79,18.92]
[1673440999119,47.49,15.799,15.791,20.0]
[1673440999334,50.9696875,15.8,15.792,18.92]
[1673441000918,20.0,15.799,15.792,18.92]
[1673441001350,20.0,15.799,15.792,17.0]
[1673441001543,50.9696875,15.8,15.792,17.0]
[1673441002166,20.0,15.799,15.792,17.0]
[1673441002697,70.9696875,15.8,15.792,17.0]
[1673441002910,70.9696875,15.8,15.791,20.0]
[1673441003232,20.0,15.799,15.79,20.0]
[1673441004281,20.0,15.799,15.791,0.96]
[1673441004609,50.9696875,15.8,15.791,18.92]
[1673441007750,46.3496875,15.8,15.791,18.92]
[1673441009837,20.0,15.799,15.791,18.92]
[1673441010047,46.3496875,15.8,15.791,18.92]
[1673441016999,46.3496875,15.8,15.791,17.0]
[1673441018377,46.3496875,15.8,15.792,20.96]
[1673441018594,46.3496875,15.8,15.793,17.0]
[1673441019746,20.0,15.799,15.793,17.0]
[1673441020056,46.3496875,15.8,15.793,17.0]
[1673441022240,47.49,15.799,15.789,5.6830336]
[1673441022451,66.24512149,15.799,15.789,5.6830336]
[1673441022677,38.75512149,15.798,15.789,5.6830336]
[1673441023211,20.0,15.796,15.789,5.6830336]
[1673441024490,20.0,15.794,15.789,5.6830336]
[1673441024893,47.5,15.793,15.789,5.6830336]
[1673441025308,20.0,15.792,15.789,5.6830336]
[1673441025841,20.0,15.792,15.79,17.0]
[1673441026167,47.5,15.793,15.79,17.0]
[1673441026578,115.9374,15.816,15.79,17.0]
[1673441026579,47.49,15.796,15.79,17.0]
[1673441027005,20.0,15.796,15.79,17.0]
[1673441027326,47.5,15.795,15.79,17.0]
[1673441028370,20.0,15.794,15.79,17.0]
[1673441028897,47.5,15.795,15.79,17.0]
[1673441030058,20.0,15.796,15.79,17.0]
[1673441030669,20.0,15.794,15.79,17.0]
[1673441031100,47.5,15.795,15.79,17.0]
[1673441032139,47.49,15.797,15.79,17.0]
[1673441032476,18.75512149,15.796,15.79,17.0]
[1673441034160,47.5,15.795,15.79,17.0]
[1673441036263,47.5,15.795,15.78,47.54]
[1673441036264,20.0,15.793,15.775,20.0]
[1673441036472,20.0,15.793,15.777,47.55]
[1673441036473,68.34,15.79,15.777,47.55]
[1673441036674,20.0,15.789,15.777,20.0]
[1673441036866,38.75512149,15.789,15.777,20.0]
[1673441037073,86.27512149,15.789,15.777,20.0]
[1673441037303,38.75512149,15.789,15.777,20.0]
[1673441037722,18.75512149,15.789,15.777,20.0]
[1673441039075,68.34,15.79,15.777,20.0]
[1673441039310,13.72,15.79,15.777,20.0]
[1673441039495,32.47512149,15.79,15.777,20.0]
[1673441040758,32.47512149,15.79,15.778,47.55]
[1673441040968,20.0,15.789,15.776,47.56]
[1673441041173,47.52,15.789,15.775,20.0]
[1673441041394,66.27512149,15.789,15.775,20.0]
[1673441041604,20.0,15.788,15.775,20.0]
[1673441041817,66.27512149,15.789,15.775,20.0]
[1673441042020,18.75512149,15.788,15.776,47.56]
[1673441042240,394.3,15.798,15.777,20.0]
[1673441042445,394.3,15.798,15.778,20.0]
[1673441042671,394.3,15.798,15.779,20.0]
[1673441042852,20.0,15.796,15.779,20.0]
[1673441043276,20.0,15.794,15.78,17.0]
[1673441043504,20.0,15.794,15.781,20.0]
[1673441043715,47.5,15.793,15.782,17.0]
[1673441043929,20.0,15.792,15.782,17.0]
[1673441044657,20.0,15.792,15.767,32.45186315]
[1673441044658,13.57,15.79,15.772,47.57]
[1673441044854,13.57,15.79,15.775,47.56]
[1673441044855,20.0,15.789,15.775,47.56]
[1673441045059,20.0,15.789,15.772,47.57]
[1673441045060,86.27512149,15.789,15.772,47.57]
[1673441045596,18.75512149,15.788,15.775,20.0]
[1673441046010,47.52,15.787,15.775,20.0]
[1673441046663,47.52,15.787,15.772,47.57]
[1673441046849,47.52,15.787,15.775,37.0]
[1673441047270,18.75512149,15.788,15.775,37.0]
[1673441047271,66.27512149,15.788,15.776,0.96]
[1673441047485,47.52,15.788,15.776,21.92]
[1673441047807,47.52,15.788,15.777,17.0]
[1673441047999,13.67,15.79,15.777,17.0]
[1673441048000,47.52,15.789,15.778,1.92]
[1673441048211,20.0,15.788,15.775,20.0]
[1673441048639,47.52,15.787,15.774,115.9712]
[1673441048849,47.52,15.787,15.775,20.0]
[1673441049488,47.52,15.787,15.774,115.9712]
[1673441050022,47.52,15.788,15.775,38.92]
[1673441050215,20.0,15.789,15.775,67.56]
[1673441050431,20.0,15.789,15.775,20.0]
[1673441050635,47.52,15.788,15.775,20.0]
[1673441051290,20.0,15.788,15.775,20.0]
[1673441051507,38.75512149,15.788,15.775,20.0]
[1673441051809,47.52,15.789,15.775,20.0]
[1673441052007,66.27512149,15.789,15.776,17.0]
[1673441052209,66.27512149,15.789,15.777,1.92]
[1673441052633,20.0,15.788,15.774,163.5312]
[1673441052862,20.0,15.788,15.774,115.9712]
[1673441053052,66.27512149,15.787,15.774,115.9712]
[1673441053266,20.0,15.786,15.774,115.9712]
[1673441054008,47.53,15.785,15.775,17.0]
[1673441054415,47.52,15.786,15.775,37.0]
[1673441054623,47.53,15.784,15.775,17.0]
[1673441054840,47.53,15.785,15.775,17.0]
[1673441055045,47.52,15.786,15.775,17.0]
[1673441056225,47.52,15.788,15.776,21.92]
[1673441056418,47.52,15.789,15.777,17.0]
[1673441056623,47.52,15.787,15.777,17.0]
[1673441056837,47.52,15.788,15.777,17.0]
[1673441058331,47.52,15.788,15.776,17.0]
[1673441058856,47.52,15.788,15.777,0.96]
[1673441059073,47.52,15.788,15.776,17.0]
[1673441059379,20.0,15.787,15.775,17.0]
[1673441059562,20.0,15.787,15.776,1.92]
[1673441059776,47.52,15.786,15.776,1.92]
[1673441060430,20.0,15.785,15.776,1.92]
[1673441060624,20.0,15.785,15.774,115.9712]
[1673441060830,68.17,15.78,15.767,118.8323]
[1673441061373,47.52,15.787,15.772,47.57]
[1673441061607,20.0,15.786,15.77,13.67]
[1673441061810,20.0,15.786,15.771,47.57]
[1673441062031,20.0,15.786,15.772,20.0]
[1673441062445,20.0,15.788,15.772,20.0]
[1673441062446,20.0,15.788,15.773,49.48]
[1673441062766,20.0,15.788,15.774,17.0]
[1673441062960,20.0,15.788,15.775,1.92]
[1673441063172,1.92,15.787,15.774,17.0]
[1673441063382,13.57,15.78,15.77,47.57]
[1673441063705,13.57,15.78,15.769,47.58]
[1673441063900,47.55,15.779,15.768,119.1047]
[1673441064319,20.0,15.778,15.767,118.8323]
[1673441065163,47.55,15.779,15.767,118.8323]
[1673441065371,39.71512149,15.778,15.765,3.1829668]
[1673441067576,38.75512149,15.778,15.765,3.1829668]
[1673441067788,18.75512149,15.778,15.766,20.0]
[1673441067999,47.55,15.779,15.767,17.0]
[1673441068434,20.0,15.778,15.767,17.0]
[1673441068753,47.55,15.779,15.767,17.0]
[1673441068985,20.0,15.778,15.767,17.0]
[1673441069699,20.0,15.778,15.765,3.1829668]
[1673441069700,67.55,15.777,15.765,3.1829668]
[1673441069887,117.3792,15.776,15.765,3.1829668]
[1673441070094,40.96,15.775,15.765,3.1829668]
[1673441070327,17.96,15.774,15.765,3.1829668]
[1673441070536,20.0,15.773,15.765,6.68e-05]
[1673441070858,21.92,15.772,15.765,6.68e-05]
[1673441071162,20.0,15.77,15.765,6.68e-05]
[1673441071590,47.58,15.769,15.765,6.68e-05]
[1673441071800,20.0,15.768,15.765,6.68e-05]
[1673441072207,20.0,15.766,15.765,6.68e-05]
[1673441072654,67.59,15.766,15.765,6.68e-05]
[1673441073913,47.59,15.766,15.765,6.68e-05]
[1673441074129,47.58,15.767,15.765,6.68e-05]
[1673441074441,47.58,15.769,15.765,6.68e-05]
[1673441074648,47.59,15.766,15.765,6.68e-05]
[1673441074856,67.58,15.768,15.765,6.68e-05]
[1673441075061,47.59,15.766,15.765,6.68e-05]
[1673441075279,47.58,15.767,15.765,6.68e-05]
[1673441076126,20.0,15.766,15.765,6.68e-05]
[1673441076535,67.59,15.766,15.765,6.68e-05]
[1673441076952,47.59,15.766,15.765,6.68e-05]
[1673441077798,47.58,15.767,15.765,6.68e-05]
[1673441078010,47.58,15.769,15.765,6.68e-05]
[1673441078409,20.0,15.768,15.765,6.68e-05]
[1673441078622,47.58,15.769,15.765,6.68e-05]
[1673441079469,38.75512149,15.768,15.765,6.68e-05]
[1673441079900,20.0,15.766,15.765,6.68e-05]
[1673441080315,86.34512149,15.766,15.765,6.68e-05]
[1673441081263,18.75512149,15.766,15.765,6.68e-05]
[1673441081476,47.58,15.767,15.765,6.68e-05]
[1673441081789,20.0,15.766,15.765,6.68e-05]
[1673441082208,58.75512149,15.766,15.765,6.68e-05]
[1673441082420,106.34512149,15.766,15.765,6.68e-05]
[1673441083054,146.74239046,15.766,15.765,6.68e-05]
[1673441083264,201.90884925,15.766,15.765,6.68e-05]
[1673441083472,201.90884925,15.766,15.746,20.0]
[1673441083473,203.82884925,15.766,15.759,0.0013394]
[1673441083678,68.55,15.765,15.759,0.0013394]
[1673441083884,68.55,15.765,15.746,20.0]
[1673441083885,20.0,15.763,15.746,20.0]
[1673441084095,13.61,15.76,15.746,20.0]
[1673441084414,20.0,15.759,15.746,47.65]
[1673441084626,86.36512149,15.759,15.745,114.4488]
[1673441084829,18.75512149,15.758,15.745,113.4488]
[1673441085034,20.0,15.757,15.745,113.4488]
[1673441085251,67.61,15.757,15.745,113.4488]
[1673441085454,38.75512149,15.757,15.745,113.4488]
[1673441085661,47.62,15.756,15.745,113.4488]
[1673441086195,47.62,15.756,15.746,20.0]
[1673441086411,47.62,15.756,15.745,113.4488]
[1673441086624,47.61,15.758,15.745,113.4488]
[1673441086940,20.0,15.757,15.746,17.96]
[1673441087129,20.0,15.757,15.746,37.96]
[1673441087777,47.61,15.758,15.747,0.96]
[1673441088186,47.61,15.758,15.746,17.96]
[1673441088187,20.0,15.757,15.746,17.96]
[1673441088612,18.17,15.76,15.747,0.96]
[1673441088834,20.0,15.762,15.748,0.96]
[1673441089144,20.0,15.764,15.749,0.96]
[1673441089357,47.6,15.761,15.75,0.96]
[1673441089570,47.59,15.763,15.75,17.0]
[1673441089770,20.0,15.762,15.75,17.0]
[1673441089963,20.0,15.762,15.751,1.92]
[1673441090401,20.0,15.763,15.751,1.92]
[1673441090913,20.0,15.763,15.751,1.42]
[1673441091240,47.6,15.762,15.751,1.42]
[1673441091456,20.0,15.762,15.751,0.96]
[1673441091647,47.6,15.761,15.751,0.96]
[1673441092297,20.0,15.76,15.751,0.96]
[1673441092491,47.6,15.761,15.747,67.64]
[1673441092703,66.35512149,15.761,15.747,20.0]
[1673441092928,47.6,15.761,15.749,20.0]
[1673441093120,47.6,15.761,15.748,47.64]
[1673441093333,67.6,15.762,15.748,47.64]
[1673441093537,67.6,15.762,15.747,47.64]
[1673441093745,67.6,15.762,15.746,47.65]
[1673441093961,86.35512149,15.762,15.746,47.65]
[1673441094182,86.35512149,15.762,15.745,161.0988]
[1673441094611,86.35512149,15.762,15.745,113.4488]
[1673441094799,67.6,15.762,15.745,113.4488]
[1673441095011,67.6,15.762,15.745,161.0988]
[1673441095228,20.0,15.759,15.745,161.0988]
[1673441095749,67.61,15.759,15.745,161.0988]
[1673441096274,47.61,15.759,15.746,0.96]
[1673441096490,47.61,15.759,15.746,18.92]
[1673441096491,20.0,15.759,15.746,18.92]
[1673441096684,18.33,15.76,15.746,18.92]
[1673441096907,38.75512149,15.759,15.745,161.0988]
[1673441097108,67.61,15.759,15.745,113.4488]
[1673441097318,86.36512149,15.759,15.745,113.4488]
[1673441097546,67.61,15.759,15.745,113.4488]
[1673441098379,67.61,15.759,15.746,18.92]
[1673441098586,184.9088,15.76,15.746,38.92]
[1673441099422,184.9088,15.76,15.746,18.92]
[1673441099633,20.0,15.759,15.746,18.92]
[1673441100808,38.75512149,15.759,15.741,5.6829668]
[1673441101024,18.32,15.75,15.741,5.6829668]
[1673441101228,20.0,15.749,15.741,5.6829668]
[1673441101436,0.96,15.748,15.741,5.6829668]
[1673441101753,20.0,15.747,15.741,5.6829668]
[1673441101946,67.64,15.747,15.741,5.6829668]
[1673441102366,186.44785608,15.747,15.741,5.6829668]
[1673441102594,20.0,15.746,15.741,5.6829668]
[1673441103028,86.40512149,15.745,15.741,5.6829668]
[1673441103222,20.0,15.743,15.741,5.6829668]
[1673441103432,20.0,15.742,15.741,5.6829668]
[1673441103648,67.66,15.742,15.741,5.6829668]
[1673441104189,5.68,15.741,15.728,174.4988756]
[1673441104397,5.68,15.741,15.722,47.5173756]
[1673441104398,20.0,15.739,15.722,47.5173756]
[1673441104614,20.0,15.739,15.723,28.0]
[1673441104814,20.0,15.739,15.72,123.5807]
[1673441104815,47.67,15.738,15.722,11.49]
[1673441105026,47.67,15.738,15.721,11.5]
[1673441105237,20.0,15.737,15.721,11.5]
[1673441105427,20.0,15.737,15.721,9.0]
[1673441105642,20.0,15.735,15.721,9.0]
[1673441105853,47.68,15.736,15.721,9.0]
[1673441106067,20.0,15.736,15.722,20.0]
[1673441106300,20.0,15.736,15.721,448.6015962]
[1673441106817,47.68,15.735,15.721,448.6015962]
[1673441107132,20.0,15.736,15.721,448.6015962]
[1673441107552,47.68,15.735,15.721,448.6015962]
[1673441107753,47.68,15.735,15.722,20.0]
[1673441107954,47.68,15.735,15.722,439.6015962]